bitfinex-derivatives/quotes_BTCF0:USTF0_20241224
["timestamp","ask_amount","ask_price","bid_price","bid_amount"]
[1735051961181,0.002,97356.0,97354.0,0.3608]
[1735051962175,0.001,97356.0,97354.0,0.3608]
[1735051962477,0.053406,97356.0,97354.0,0.3608]
[1735051962670,0.002,97356.0,97354.0,0.3608]
[1735051963767,0.001,97356.0,97354.0,0.3608]
[1735051963973,0.002,97356.0,97354.0,0.3608]
[1735051964566,0.002,97356.0,97355.0,0.061407]
[1735051965082,0.051393,97381.0,97371.0,0.051398]
[1735051965277,0.20361191,97381.0,97375.0,0.7216]
[1735051965667,0.051394,97380.0,97375.0,0.7216]
[1735051965869,0.051394,97379.0,97375.0,0.7216]
[1735051966073,0.15221891,97381.0,97375.0,0.7216]
[1735051966271,0.051396,97376.0,97375.0,0.7216]
[1735051967575,0.052396,97376.0,97375.0,0.7216]
[1735051968383,0.001,97376.0,97375.0,0.7216]
[1735051968671,0.001,97376.0,97375.0,0.772996]
[1735051969570,0.00984577,97381.0,97375.0,0.772996]
[1735051969780,0.001,97376.0,97375.0,0.772996]
[1735051970280,0.05139,97386.0,97385.0,0.051391]
[1735051970281,0.00951147,97386.0,97385.0,0.051391]
[1735051970470,4.058e-05,97390.0,97385.0,0.3608]
[1735051970675,4.058e-05,97390.0,97389.0,0.051389]
[1735051971471,0.1,97400.0,97388.0,0.3608]
[1735051971675,0.10988183,97400.0,97399.0,0.3608]
[1735051971883,0.1848,97421.0,97399.0,0.3608]
[1735051972178,0.15221891,97420.0,97400.0,0.051383]
[1735051972578,0.1848,97421.0,97409.0,0.3608]
[1735051972579,0.051375,97415.0,97409.0,0.3608]
[1735051972778,0.1848,97421.0,97409.0,0.3608]
[1735051972980,0.051373,97420.0,97409.0,0.3608]
[1735051973183,0.20359191,97420.0,97418.0,0.3608]
[1735051973485,0.051373,97420.0,97418.0,0.3608]
[1735051974070,0.002,97420.0,97418.0,0.3608]
[1735051975971,0.054373,97420.0,97418.0,0.3608]
[1735051976175,0.003,97420.0,97418.0,0.53967934]
[1735051976381,0.003,97420.0,97418.0,0.59105234]
[1735051976588,0.003,97420.0,97418.0,0.59205234]
[1735051976780,0.00978924,97421.0,97420.0,0.051372]
[1735051977086,0.051366,97433.0,97426.0,0.01]
[1735051977282,0.051365,97434.0,97432.0,0.3608]
[1735051978085,0.06128578,97434.0,97432.0,0.3608]
[1735051978482,0.15221891,97442.0,97432.0,0.3618]
[1735051978790,0.32264899,97439.0,97409.0,0.65893224]
[1735051978986,0.051375,97416.0,97409.0,0.65993224]
[1735051979181,0.051375,97416.0,97414.0,0.23850579]
[1735051979987,0.051375,97416.0,97415.0,0.001]
[1735051980472,0.15221891,97428.0,97409.0,0.3618]
[1735051980677,0.051378,97410.0,97409.0,0.3608]
[1735051982195,0.051378,97410.0,97390.0,0.00987401]
[1735051982196,0.051378,97409.0,97384.0,0.001]
[1735051982378,0.051378,97409.0,97379.0,0.02326314]
[1735051982379,0.051393,97381.0,97379.0,0.02326314]
[1735051982582,0.3608,97380.0,97379.0,0.02326314]
[1735051983093,0.3608,97380.0,97360.0,0.35775869]
[1735051983487,0.15221891,97370.0,97360.0,0.35775869]
[1735051983694,0.3608,97361.0,97360.0,0.09560076]
[1735051983991,0.051408,97352.0,97351.0,0.35944142]
[1735051984180,0.051408,97352.0,97351.0,0.35848142]
[1735051984181,0.411118,97352.0,97351.0,0.35848142]
[1735051984783,0.3608,97352.0,97345.0,0.00096]
[1735051984984,0.05141,97350.0,97335.0,0.051417]
[1735051985186,0.15221891,97350.0,97333.0,0.051418]
[1735051985387,0.051416,97337.0,97326.0,0.3608]
[1735051985584,0.3608,97338.0,97326.0,0.051422]
[1735051985787,0.3608,97338.0,97329.0,0.05142]
[1735051986087,0.3608,97338.0,97325.0,0.051422]
[1735051986387,0.3608,97338.0,97331.0,0.051419]
[1735051986994,0.3608,97338.0,97323.0,0.32876025]
[1735051987290,0.3608,97338.0,97333.0,0.051418]
[1735051988989,0.3618,97338.0,97333.0,0.051418]
[1735051989289,0.3618,97338.0,97325.0,0.009]
[1735051989484,0.3618,97338.0,97328.0,0.051421]
[1735051989686,0.3608,97338.0,97333.0,0.004]
[1735051989887,0.3618,97338.0,97333.0,0.004]
[1735051990189,0.00052001,97352.0,97337.0,0.3608]
[1735051990396,0.3608,97368.0,97358.0,0.051405]
[1735051990592,0.3608,97368.0,97351.0,0.3608]
[1735051990787,0.051404,97361.0,97352.0,0.051408]
[1735051990989,0.3608,97368.0,97355.0,0.051407]
[1735051991180,0.15221891,97362.0,97355.0,0.051407]
[1735051991592,0.051401,97366.0,97355.0,0.051407]
[1735051991790,0.3608,97359.0,97345.0,0.051412]
[1735051991996,0.3608,97359.0,97338.0,0.00104]
[1735051992190,0.051406,97356.0,97343.0,0.051413]
[1735051992389,0.3608,97359.0,97343.0,0.051413]
[1735051992790,0.051408,97352.0,97344.0,0.051412]
[1735051992991,0.3608,97359.0,97349.0,0.05141]
[1735051993391,0.3608,97359.0,97345.0,0.3608]
[1735051993587,0.051408,97354.0,97345.0,0.3608]
[1735051993792,0.051408,97353.0,97345.0,0.3608]
[1735051994500,0.051409,97352.0,97349.0,0.05141]
[1735051994899,0.3608,97359.0,97352.0,0.051408]
[1735051995199,0.3608,97359.0,97345.0,0.3608]
[1735051995497,0.3608,97359.0,97355.0,0.051406]
[1735051995698,0.051406,97357.0,97355.0,0.051406]
[1735051995995,0.3608,97359.0,97349.0,0.002]
[1735051996197,0.3628,97359.0,97349.0,0.002]
[1735051996387,0.051409,97350.0,97349.0,0.002]
[1735051996589,0.051409,97350.0,97348.0,0.05141]
[1735051996794,0.051409,97350.0,97345.0,0.3608]
[1735051996795,0.3658,97359.0,97351.0,0.051408]
[1735051997193,0.3628,97359.0,97351.0,0.051408]
[1735051997691,0.3628,97359.0,97345.0,0.37068021]
[1735051997895,0.3628,97359.0,97353.0,0.051408]
[1735051997896,0.051406,97357.0,97353.0,0.051408]
[1735051999294,0.051407,97356.0,97349.0,0.001]
[1735051999494,0.051407,97356.0,97352.0,0.051408]
[1735051999690,0.003,97357.0,97353.0,0.051408]
[1735052000003,0.003,97357.0,97345.0,0.37164021]
[1735052000004,0.003,97357.0,97356.0,0.051406]
[1735052002099,0.004,97357.0,97356.0,0.051406]
[1735052003297,0.004,97357.0,97356.0,0.412206]
[1735052004299,0.001,97357.0,97356.0,0.412206]
[1735052004498,0.005,97357.0,97356.0,0.412206]
[1735052005092,0.09176977,97373.0,97357.0,0.3605]
[1735052005395,0.09176977,97373.0,97372.0,0.772998]
[1735052005594,0.23478443,97397.0,97379.0,0.051394]
[1735052006006,0.12235231,97388.0,97387.0,0.05139]
[1735052007094,0.13135231,97388.0,97387.0,0.05239]
[1735052007298,0.009,97388.0,97387.0,0.05239]
[1735052007497,0.3608,97405.0,97402.0,0.051381]
[1735052007900,0.41218,97405.0,97402.0,0.051381]
[1735052008103,0.41218,97405.0,97403.0,0.051381]
[1735052009791,0.3608,97405.0,97403.0,0.001]
[1735052009997,0.3608,97405.0,97403.0,0.052381]
[1735052010802,0.051381,97404.0,97403.0,0.052381]
[1735052011002,0.3608,97405.0,97403.0,0.052381]
[1735052011308,0.051381,97404.0,97369.0,0.051399]
[1735052011497,0.051395,97377.0,97372.0,0.051397]
[1735052011698,0.3608,97379.0,97372.0,0.051397]
[1735052012500,0.051396,97376.0,97373.0,0.051397]
[1735052012904,0.051397,97374.0,97372.0,0.015]
[1735052013107,0.3608,97376.0,97372.0,0.015]
[1735052013307,0.051397,97373.0,97372.0,0.015]
[1735052013609,0.051397,97373.0,97372.0,0.006]
[1735052014309,0.3608,97376.0,97367.0,0.0015403]
[1735052014310,0.3618,97376.0,97367.0,0.0015403]
[1735052014509,0.3608,97368.0,97367.0,0.0529403]
[1735052015005,0.00052001,97376.0,97372.0,0.001]
[1735052015205,0.12235231,97376.0,97373.0,0.051397]
[1735052015402,0.12235231,97376.0,97375.0,0.051396]
[1735052016112,0.01223393,97381.0,97379.0,0.051394]
[1735052016308,0.051395,97378.0,97373.0,0.001]
[1735052016497,0.12235231,97382.0,97378.0,0.051394]
[1735052016698,0.13467515,97382.0,97380.0,0.051393]
[1735052017604,0.13467515,97382.0,97375.0,0.011]
[1735052017808,0.01232284,97382.0,97381.0,0.051393]
[1735052018008,0.12235231,97384.0,97375.0,0.011]
[1735052018312,0.051395,97377.0,97375.0,0.011]
[1735052018511,0.3608,97378.0,97373.0,0.004]
[1735052018512,0.051396,97376.0,97373.0,0.004]
[1735052018904,0.3608,97378.0,97373.0,0.004]
[1735052019109,0.3608,97378.0,97367.0,0.0015403]
[1735052019110,0.12235231,97376.0,97375.0,0.002]
[1735052019702,0.12235231,97376.0,97374.0,0.051397]
[1735052020309,0.051395,97377.0,97375.0,0.002]
[1735052021105,0.051396,97376.0,97374.0,0.002]
[1735052021303,0.051396,97376.0,97375.0,0.001]
[1735052021703,0.051396,97376.0,97374.0,0.002]
[1735052021902,0.051396,97376.0,97375.0,0.001]
[1735052022299,0.15294039,97377.0,97375.0,0.001]
[1735052023102,0.51374039,97378.0,97375.0,0.001]
[1735052023504,0.51374039,97378.0,97372.0,0.051397]
[1735052023704,0.3608,97373.0,97372.0,0.051397]
[1735052024213,0.3608,97373.0,97367.0,0.0015403]
[1735052024214,0.412197,97373.0,97367.0,0.0015403]
[1735052024916,0.3608,97373.0,97367.0,0.0015403]
[1735052025110,0.3608,97373.0,97368.0,0.0514]
[1735052025410,0.37291569,97373.0,97372.0,0.003]
[1735052025804,0.42431269,97373.0,97372.0,0.003]
[1735052026713,0.0514,97368.0,97367.0,0.002]
[1735052026908,0.1888,97372.0,97335.0,0.00154106]
[1735052027109,0.3608,97336.0,97335.0,0.00154106]
[1735052027618,0.412217,97336.0,97335.0,0.00154106]
[1735052028503,0.412217,97336.0,97335.0,0.00754106]
[1735052028707,0.3608,97336.0,97311.0,0.29955992]
[1735052028909,0.3608,97312.0,97311.0,0.29955992]
[1735052029115,0.3608,97312.0,97311.0,0.05143]
[1735052029712,0.3608,97322.0,97312.0,0.051429]
[1735052029911,0.3608,97322.0,97313.0,0.051428]
[1735052030118,0.3608,97322.0,97303.0,0.37592951]
[1735052030318,0.3608,97322.0,97312.0,0.3608]
[1735052030520,0.3608,97322.0,97320.0,0.051425]
[1735052030716,0.1227597,97332.0,97314.0,0.051428]
[1735052030913,0.1227597,97332.0,97331.0,0.051419]
[1735052032012,0.1237597,97332.0,97331.0,0.051419]
[1735052032217,0.001,97332.0,97314.0,0.007]
[1735052032415,0.3608,97334.0,97313.0,0.188]
[1735052032615,0.001,97332.0,97314.0,0.051428]
[1735052032816,0.001,97332.0,97320.0,0.3608]
[1735052033016,0.001,97332.0,97331.0,0.002]
[1735052033920,0.001,97332.0,97325.0,0.051422]
[1735052034619,0.3608,97334.0,97331.0,0.002]
[1735052034833,0.051418,97333.0,97331.0,0.002]
[1735052035119,0.36232001,97334.0,97331.0,0.002]
[1735052035325,0.3608,97334.0,97331.0,0.002]
[1735052035930,0.3618,97334.0,97331.0,0.002]
[1735052036313,0.051425,97321.0,97309.0,0.051431]
[1735052036521,0.3608,97317.0,97309.0,0.051431]
[1735052037125,0.3608,97317.0,97302.0,0.051434]
[1735052037322,0.3608,97317.0,97302.0,0.06633661]
[1735052037724,0.05143,97311.0,97302.0,0.051434]
[1735052037924,0.37690433,97317.0,97309.0,0.004]
[1735052038130,0.37630432,97317.0,97309.0,0.013]
[1735052038729,0.37730432,97317.0,97309.0,0.004]
[1735052039226,0.37630432,97317.0,97309.0,0.004]
[1735052039528,0.37830432,97317.0,97309.0,0.007]
[1735052040226,0.3618,97317.0,97312.0,0.051429]
[1735052040528,0.3618,97317.0,97309.0,0.007]
[1735052040529,0.413227,97317.0,97309.0,0.011]
[1735052041422,0.412227,97317.0,97312.0,0.006]
[1735052041930,0.412227,97317.0,97309.0,0.004]
[1735052042121,0.413227,97317.0,97309.0,0.011]
[1735052042427,0.413227,97317.0,97312.0,0.004]
[1735052042631,0.051428,97316.0,97312.0,0.004]
[1735052042828,0.051428,97316.0,97312.0,0.01]
[1735052043231,0.051428,97316.0,97312.0,0.006]
[1735052043826,0.051428,97315.0,97312.0,0.006]
[1735052044129,0.051429,97314.0,97312.0,0.004]
[1735052044326,0.3618,97317.0,97312.0,0.004]
[1735052044521,0.001,97317.0,97316.0,0.3608]
[1735052044831,0.24296823,97360.0,97326.0,0.051422]
[1735052045025,0.13407268,97334.0,97333.0,0.412218]
[1735052045228,0.12251438,97336.0,97333.0,0.3608]
[1735052045534,0.12251438,97336.0,97334.0,0.051418]
[1735052046934,0.3608,97342.0,97337.0,0.051416]
[1735052047128,0.051414,97341.0,97337.0,0.051416]
[1735052048334,0.051414,97341.0,97339.0,0.051415]
[1735052049027,0.055414,97341.0,97339.0,0.051415]
[1735052049439,0.051416,97337.0,97326.0,0.3759315]
[1735052049740,0.3608,97332.0,97326.0,0.0665535]
[1735052049926,0.051421,97329.0,97328.0,0.051421]
[1735052052132,0.051422,97327.0,97326.0,0.001]
[1735052052430,0.051422,97327.0,97325.0,0.01502695]
[1735052052632,0.3608,97362.0,97328.0,0.001]
[1735052052830,0.05141,97349.0,97347.0,0.05141]
[1735052053633,0.05141,97349.0,97342.0,0.051414]
[1735052053930,0.051409,97351.0,97330.0,0.10144905]
[1735052054136,0.051409,97351.0,97343.0,0.051413]
[1735052054334,0.051409,97351.0,97344.0,0.051412]
[1735052054935,0.004,97349.0,97344.0,0.051412]
[1735052055126,0.3608,97345.0,97327.0,0.00154116]
[1735052055326,0.3608,97330.0,97328.0,0.051421]
[1735052056634,0.3608,97330.0,97328.0,0.052421]
[1735052056835,0.3608,97330.0,97328.0,0.001]
[1735052057030,0.05142,97329.0,97328.0,0.001]
[1735052058239,0.3608,97330.0,97328.0,0.001]
[1735052058736,0.3608,97330.0,97327.0,0.05296216]
[1735052059633,0.3608,97330.0,97328.0,0.001]
[1735052060431,0.3608,97329.0,97328.0,0.001]
[1735052061735,0.3618,97329.0,97328.0,0.001]
[1735052061938,0.3618,97329.0,97327.0,0.00154116]
[1735052062130,0.051421,97328.0,97327.0,0.00254116]
[1735052062844,0.051431,97310.0,97302.0,0.3608]
[1735052063036,0.3608,97310.0,97308.0,0.051431]
[1735052064541,0.3618,97310.0,97308.0,0.060431]
[1735052066037,0.3618,97310.0,97308.0,0.065431]
[1735052066231,0.001,97310.0,97308.0,0.065431]
[1735052066851,0.001,97310.0,97308.0,0.055431]
[1735052067048,0.051425,97320.0,97318.0,0.051426]
[1735052067544,0.00321446,97319.0,97318.0,0.051426]
[1735052067939,0.00321446,97319.0,97318.0,0.351426]
[1735052068139,0.00321446,97319.0,97318.0,0.36536835]
[1735052068539,0.3608,97329.0,97318.0,0.36536835]
[1735052068840,0.3608,97329.0,97328.0,0.051421]
[1735052069735,0.051424,97322.0,97319.0,0.051426]
[1735052069942,0.051424,97322.0,97320.0,0.051425]
[1735052070631,0.00321437,97321.0,97320.0,0.051425]
[1735052071650,0.3608,97329.0,97323.0,0.051423]
[1735052071651,0.051424,97324.0,97323.0,0.051423]
[1735052071942,0.3608,97329.0,97321.0,0.051425]
[1735052072149,0.3608,97329.0,97327.0,0.051421]
[1735052072943,0.3608,97335.0,97334.0,0.051418]
[1735052074444,0.3628,97335.0,97334.0,0.051418]
[1735052075748,0.36701408,97335.0,97334.0,0.051418]
[1735052076248,0.00621408,97335.0,97334.0,0.412218]
[1735052077338,0.00621408,97335.0,97334.0,0.42665887]
[1735052078839,0.00621408,97335.0,97334.0,0.06585887]
[1735052079152,0.00621383,97335.0,97334.0,0.42665887]
[1735052080235,0.00621383,97335.0,97334.0,0.06585887]
[1735052080433,0.00621383,97335.0,97334.0,0.42665887]
[1735052080635,0.003,97335.0,97334.0,0.42665887]
[1735052081251,0.003,97335.0,97334.0,0.06585887]
[1735052081750,0.00621393,97335.0,97334.0,0.06585887]
[1735052081943,0.00621386,97335.0,97334.0,0.06585887]
[1735052082651,0.00521386,97335.0,97334.0,0.06585887]
[1735052082836,0.05663086,97335.0,97334.0,0.003]
[1735052083254,0.00521386,97335.0,97334.0,0.003]
[1735052083545,0.00321386,97335.0,97334.0,0.009]
[1735052083750,0.3608,97336.0,97335.0,0.051417]
[1735052085250,0.3608,97336.0,97335.0,0.055417]
[1735052085752,0.3608,97336.0,97335.0,0.058417]
[1735052086253,0.3608,97336.0,97335.0,0.07294755]
[1735052086752,0.3608,97336.0,97335.0,0.07394755]
[1735052087449,0.3608,97336.0,97335.0,0.007]
[1735052087661,0.051428,97315.0,97293.0,8.148e-05]
[1735052087854,0.051417,97335.0,97291.0,0.72512066]
[1735052087855,0.051434,97304.0,97291.0,0.72512066]
[1735052088053,0.051434,97304.0,97291.0,0.36432066]
[1735052088254,0.236634,97304.0,97291.0,0.36432066]
[1735052089254,0.051435,97301.0,97291.0,0.36432066]
[1735052089648,0.051435,97301.0,97291.0,0.00250155]
[1735052089842,0.051435,97301.0,97295.0,0.051438]
[1735052090352,0.06448136,97304.0,97291.0,0.00154155]
[1735052090551,0.05001303,97304.0,97303.0,0.005]
[1735052090848,0.15364916,97304.0,97303.0,0.005]
[1735052091756,0.15364916,97304.0,97303.0,0.008]
[1735052091962,0.01362706,97310.0,97303.0,0.008]
[1735052092147,0.3608,97315.0,97304.0,0.051434]
[1735052092352,0.051431,97309.0,97304.0,0.051434]
[1735052092656,0.051433,97305.0,97303.0,0.003]
[1735052093050,0.1689,97304.0,97303.0,0.005]
[1735052093449,0.3539,97304.0,97300.0,0.1]
[1735052093653,0.05144,97292.0,97279.0,0.051447]
[1735052093845,0.41224,97292.0,97279.0,0.051447]
[1735052094758,0.41224,97292.0,97280.0,0.051446]
[1735052095059,0.41324,97292.0,97291.0,0.01054155]
[1735052095257,0.42645139,97292.0,97291.0,0.01054155]
[1735052095967,0.3618,97292.0,97291.0,0.01054155]
[1735052096151,0.3618,97292.0,97291.0,0.01554155]
[1735052096557,0.001,97292.0,97291.0,0.01554155]
[1735052097958,0.36008639,97297.0,97291.0,0.01554155]
[1735052098957,0.05144,97293.0,97291.0,0.01554155]
[1735052099459,0.05144,97293.0,97291.0,0.014]
[1735052099661,0.05144,97293.0,97255.0,0.3608]
[1735052099662,0.051452,97269.0,97263.0,0.00096]
[1735052099854,0.412252,97269.0,97260.0,0.051457]
[1735052100254,0.412257,97261.0,97253.0,0.00154234]
[1735052100458,0.3608,97261.0,97253.0,0.00154234]
[1735052100860,0.051459,97257.0,97253.0,0.00154234]
[1735052101061,0.05146,97255.0,97253.0,0.00154234]
[1735052101564,0.05146,97255.0,97253.0,0.01054234]
[1735052102154,0.3618,97261.0,97259.0,0.051457]
[1735052102355,0.001,97261.0,97253.0,0.37134234]
[1735052102560,0.001,97261.0,97253.0,0.37334234]
[1735052102865,0.001,97261.0,97255.0,0.3608]
[1735052103564,0.3608,97269.0,97254.0,0.05146]
[1735052103565,0.001,97255.0,97254.0,0.05146]
[1735052103964,0.3608,97259.0,97253.0,0.00154234]
[1735052104165,0.051459,97256.0,97255.0,0.003]
[1735052104559,0.051459,97256.0,97253.0,0.00154234]
[1735052104759,0.051459,97256.0,97254.0,0.003]
[1735052104967,0.051459,97256.0,97255.0,0.002]
[1735052105468,0.051459,97256.0,97255.0,0.005]
[1735052105666,0.051459,97256.0,97255.0,0.003]
[1735052106463,0.15239174,97270.0,97255.0,0.003]
[1735052106464,0.3608,97298.0,97256.0,0.3605]
[1735052106659,0.1748,97330.0,97302.0,0.051434]
[1735052106863,0.3608,97329.0,97303.0,0.18]
[1735052107169,0.3608,97329.0,97321.0,0.3608]
[1735052107376,0.3608,97341.0,97329.0,0.05142]
[1735052107673,0.051415,97339.0,97322.0,0.051424]
[1735052107868,0.3608,97341.0,97321.0,0.3608]
[1735052107869,0.009,97329.0,97321.0,0.3608]
[1735052108259,0.009,97329.0,97325.0,0.051422]
[1735052108458,0.37715875,97341.0,97321.0,0.3608]
[1735052108663,0.3638,97341.0,97330.0,0.15239174]
[1735052109072,0.3638,97341.0,97322.0,0.004]
[1735052109264,0.3638,97341.0,97331.0,0.051419]
[1735052110258,0.3608,97341.0,97330.0,0.15239174]
[1735052110461,0.412214,97341.0,97330.0,0.15239174]
[1735052111473,0.051416,97339.0,97331.0,0.001]
[1735052111980,0.3608,97341.0,97331.0,0.001]
[1735052111981,0.412219,97332.0,97331.0,0.001]
[1735052112178,0.412219,97332.0,97312.0,0.051429]
[1735052112179,0.051422,97327.0,97312.0,0.051429]
[1735052112478,0.3608,97321.0,97301.0,0.3608]
[1735052112681,0.412232,97309.0,97301.0,0.3608]
[1735052112983,0.412232,97309.0,97294.0,0.7213]
[1735052113182,0.412232,97309.0,97294.0,0.7225]
[1735052113982,0.412232,97309.0,97300.0,0.051436]
[1735052114185,0.3608,97309.0,97294.0,0.0012]
[1735052114376,0.3618,97309.0,97303.0,0.187]
[1735052114675,0.3618,97309.0,97303.0,0.191]
[1735052114872,0.001,97309.0,97303.0,0.191]
[1735052115076,0.3608,97362.0,97340.0,0.051414]
[1735052115283,0.3608,97360.0,97344.0,0.3608]
[1735052115487,0.3608,97360.0,97357.0,0.051405]
[1735052115783,0.3608,97371.0,97358.0,0.051405]
[1735052116081,0.3608,97371.0,97364.0,0.051402]
[1735052116279,0.3608,97371.0,97352.0,0.3608]
[1735052116474,0.009,97360.0,97353.0,0.051408]
[1735052116681,0.009,97360.0,97354.0,0.3608]
[1735052117077,0.3608,97360.0,97341.0,0.3608]
[1735052117284,0.051405,97359.0,97358.0,0.001]
[1735052118575,0.3,97359.0,97346.0,0.3608]
[1735052118781,0.05141,97350.0,97337.0,0.051416]
[1735052119087,0.005,97359.0,97345.0,0.3608]
[1735052119088,0.056405,97359.0,97345.0,0.3608]
[1735052119382,0.051405,97358.0,97354.0,0.001]
[1735052119980,0.005,97359.0,97351.0,0.3608]
[1735052120181,0.051408,97353.0,97351.0,0.3608]
[1735052121682,0.051408,97353.0,97340.0,0.051414]
[1735052121879,0.006,97359.0,97349.0,0.41221]
[1735052122178,0.003,97353.0,97349.0,0.41221]
[1735052122387,0.003,97353.0,97349.0,0.3608]
[1735052122579,0.009,97353.0,97351.0,0.001]
[1735052122786,0.006,97353.0,97351.0,0.001]
[1735052123086,0.051407,97355.0,97349.0,0.3608]
[1735052123384,0.051408,97353.0,97351.0,0.3608]
[1735052123781,0.051411,97348.0,97338.0,0.051415]
[1735052124279,0.051411,97348.0,97337.0,0.3608]
[1735052124280,0.051411,97348.0,97340.0,0.051414]
[1735052125082,0.051411,97348.0,97345.0,0.3608]
[1735052125280,0.002,97355.0,97345.0,0.3608]
[1735052125583,0.002,97355.0,97347.0,0.051411]
[1735052126381,0.051406,97357.0,97348.0,0.05141]
[1735052127090,0.055407,97355.0,97345.0,0.412212]
[1735052127383,0.004,97355.0,97349.0,0.05141]
[1735052127686,0.006,97355.0,97352.0,0.051408]
[1735052128184,0.006,97355.0,97345.0,0.412212]
[1735052128381,0.051407,97354.0,97345.0,0.412212]
[1735052128985,0.005,97355.0,97353.0,0.051408]
[1735052129182,0.003,97355.0,97346.0,0.1886]
[1735052129388,0.006,97355.0,97354.0,0.051407]
[1735052129783,0.051395,97377.0,97365.0,0.051401]
[1735052129988,0.3608,97381.0,97354.0,0.3608]
[1735052130280,0.15239174,97380.0,97354.0,0.3608]
[1735052130481,0.051398,97373.0,97365.0,0.051401]
[1735052130692,0.37150906,97371.0,97365.0,0.051401]
[1735052131081,0.37850906,97371.0,97365.0,0.051401]
[1735052132096,0.37850906,97371.0,97367.0,0.0514]
[1735052132291,0.01770906,97371.0,97367.0,0.0514]
[1735052132792,0.051401,97367.0,97362.0,0.3608]
[1735052132983,0.051401,97367.0,97363.0,0.1897]
[1735052133184,0.01070906,97371.0,97365.0,0.001]
[1735052133387,0.051398,97371.0,97365.0,0.001]
[1735052133680,0.15239174,97380.0,97363.0,0.1897]
[1735052133884,0.0514,97369.0,97367.0,0.001]
[1735052134299,0.15239174,97380.0,97365.0,0.002]
[1735052134484,0.051398,97373.0,97365.0,0.002]
[1735052135090,0.051394,97379.0,97365.0,0.002]
[1735052135287,0.051401,97366.0,97365.0,0.002]
[1735052135486,0.051397,97373.0,97365.0,0.002]
[1735052135691,0.051397,97373.0,97372.0,0.3608]
[1735052137197,0.052397,97373.0,97372.0,0.3608]
[1735052138081,0.001,97373.0,97363.0,0.49018174]
[1735052138285,0.051402,97365.0,97363.0,0.48906174]
[1735052138788,0.002,97373.0,97363.0,0.1897]
[1735052138989,0.0514,97368.0,97363.0,0.1897]
[1735052139391,0.0514,97368.0,97363.0,0.1927]
[1735052139694,0.051401,97367.0,97363.0,0.1927]
[1735052140897,0.051401,97366.0,97363.0,0.1927]
[1735052141103,0.051402,97365.0,97363.0,0.1927]
[1735052142497,0.051402,97365.0,97363.0,0.1917]
[1735052142703,0.051402,97365.0,97363.0,0.1927]
[1735052143193,0.051402,97365.0,97363.0,0.1907]
[1735052143401,0.412194,97379.0,97363.0,0.1907]
[1735052143700,0.051402,97365.0,97363.0,0.001]
[1735052144093,0.051402,97364.0,97361.0,0.29936174]
[1735052144392,0.001,97365.0,97361.0,0.29936174]
[1735052145096,0.001,97365.0,97357.0,0.29936174]
[1735052145405,0.001,97365.0,97364.0,0.051402]
[1735052145592,0.002,97365.0,97364.0,0.051402]
[1735052146201,0.002,97365.0,97362.0,0.3608]
[1735052146202,0.412194,97379.0,97362.0,0.3608]
[1735052146403,0.412194,97379.0,97369.0,0.051399]
[1735052146597,0.3608,97379.0,97369.0,0.051399]
[1735052146804,0.051395,97378.0,97369.0,0.051399]
[1735052147396,0.051395,97378.0,97374.0,0.3011309]
[1735052147600,0.051395,97377.0,97374.0,0.3011309]
[1735052148391,0.051395,97377.0,97375.0,0.3011309]
[1735052149201,0.3608,97409.0,97379.0,0.051394]
[1735052149202,0.05139,97387.0,97379.0,0.051394]
[1735052149422,0.05139,97387.0,97385.0,0.3608]
[1735052149905,0.06195984,97387.0,97385.0,0.3608]
[1735052150506,0.06195984,97387.0,97386.0,0.3011309]
[1735052151307,0.06595984,97387.0,97386.0,0.3011309]
[1735052151698,0.07195984,97387.0,97385.0,0.3618]
[1735052152300,0.07195984,97387.0,97386.0,0.001]
[1735052152807,0.06595984,97387.0,97385.0,0.3608]
[1735052152995,0.07195984,97387.0,97385.0,0.3618]
[1735052153395,0.1,97400.0,97386.0,0.05139]
[1735052153610,0.1,97400.0,97398.0,0.051384]
[1735052154512,0.104,97400.0,97398.0,0.051384]
[1735052154710,0.104,97400.0,97399.0,0.69082254]
[1735052155304,0.1,97400.0,97399.0,0.69082254]
[1735052155506,0.107,97400.0,97398.0,0.3535149]
[1735052155811,0.113,97400.0,97398.0,0.3545149]
[1735052156310,0.113,97400.0,97399.0,0.001]
[1735052156806,0.113,97400.0,97398.0,0.3545149]
[1735052157006,0.112,97400.0,97398.0,0.3535149]
[1735052157812,0.01545,97400.0,97399.0,0.3608]
[1735052158201,0.051373,97419.0,97399.0,0.3608]
[1735052158407,0.10138905,97430.0,97416.0,0.3608]
[1735052158607,0.051374,97418.0,97416.0,0.3608]
[1735052159414,0.051374,97418.0,97417.0,0.24014645]
[1735052160808,0.051374,97418.0,97417.0,0.001]
[1735052160809,0.057374,97418.0,97417.0,0.001]
[1735052161413,0.006,97418.0,97417.0,0.001]
[1735052161610,0.006,97418.0,97417.0,0.1791]
[1735052162014,0.006,97418.0,97417.0,0.3622]
[1735052163510,0.006,97418.0,97417.0,0.60234645]
[1735052164324,0.006,97418.0,97417.0,0.3622]
[1735052165419,0.006,97418.0,97417.0,0.3612]
[1735052165621,0.006,97418.0,97417.0,0.60234645]
[1735052166121,0.006,97418.0,97417.0,0.60134645]
[1735052166321,0.003,97418.0,97417.0,0.65272045]
[1735052166518,0.003,97418.0,97417.0,0.41924645]
[1735052166719,0.003,97418.0,97417.0,0.001]